{"text_format":"1","workbook":"xlsx","n_sheets":6,"sheets":["Instruções gerais ","Identificação ","Grupo 1","Grupo 2","Grupo 3","Relatório para Validação"],"not_rendered":{"charts":0,"images":1,"macros":1,"external_links":1,"defined_names":1,"comments":0,"pivot_tables":0},"unopened":[],"bounds":{"document_bytes":16777216,"sheet_cells":100000,"rows_first":2000,"rows_last":500,"rows_between":2000,"halvings":0,"cell_chars":16384,"cell_head_chars":4096},"cells_cut":0,"cells_raw":0,"read":"whole","date_system":"1900"}

{"sheet":"Instruções gerais ","index":0,"n_rows":18,"n_cols":4,"rows_kept":18,"cut":false,"hidden":false,"merged":[[15,3,16,19],[13,3,14,18]]}
[]
[]
[]
[]
[]
[]
[]
[]
[]
[]
[]
[null,null,null,"1) Na segunda aba, identifique-se"]
[null,null,null,"2) Preencha as ponduações das atividades realizadas nas planilhas \"Grupo 1\", \"Grupo 2\" e \"Grupo 3\". "]
[null,null,null,"3) Em seguida, clique no botão gerar relatório na planilha \"Relatório para Validação\" para conferir sua pontuação. Obs: para que o relatório possa ser gerado é necessário que seu Excel esteja habilitado para Macro e em alguns casos a permissão é solicitada ao abrir o arquivo."]
[]
[null,null,null,"4) Salve o arquivo e envie ao Professor responsável pelas Atividades Complementares, juntamente com a documentação comprobatória escaneada, apresentando no e-mail uma listagem que associe os títulos das atividades nos certificados ao grupo e código da atividade que deseja validar. "]
[]
[null,null,null,"5) Aguarde a conferência e o retorno da validação por parte do Professor responsável pelas Atividades Complementares"]

{"sheet":"Identificação ","index":1,"n_rows":18,"n_cols":4,"rows_kept":18,"cut":false,"hidden":false,"merged":[[11,3,11,15]]}
[]
[]
[]
[]
[]
[]
[]
[]
[]
[]
[]
[null,null,null,"RELATÓRIO DE ATIVIDADES COMPLEMENTARES -COENQ"]
[]
[null,null,null,"Nome: "]
[]
[null,null,null,"Ra: "]
[]
[null,null,null,"Data:"]

{"sheet":"Grupo 1","index":2,"n_rows":14,"n_cols":6,"rows_kept":14,"cut":false,"hidden":false,"merged":[[0,0,0,5],[2,3,3,3],[6,3,8,3],[6,5,8,5],[13,0,13,4],[9,3,10,3],[11,3,12,3],[2,5,3,5],[9,5,10,5],[11,5,12,5]]}
["Grupo 1- Atividades de complementação da formação social, humana e cultural"]
["Código da atividade","Atividades","Pontuação ","Limite","Pontos solicitados em cada atividade","Pontos obtidos no item"]
["i","Participação como atleta em eventos oficiais de atividades esportivas (Ex: Jogos de inter-atléticas, jogos do Engenhariadas, eventos de confederações esportivas, entre outros). Obs: jogos de azar não são considerados.","5 pontos/evento ","Máx 10 pontos acumulados nos itens i e ii.",null,{"$f":"IF((E3+E4)>10,10,(E3+E4))","v":0}]
["ii","Prática de atividades esportivas regulares (Ex: Musculação, dança, luta, clube de corrida, entre outros).","2 pontos/semestre"]
["iii","Participação em eventos oficiais de board games e competições de e-sports.","1 ponto/evento","Máx 5 pontos",null,{"$f":"IF((E5)>10,10,(E5))","v":0}]
["iv","Cursos ou trabalho fora da área de formação de caráter social, humano e cultural.","5 pontos/40 horas","Máx 10 pontos",null,{"$f":"IF((E6)>10,10,(E6))","v":0}]
["v","Cursos de língua estrangeira – Obs: são necessários serem níveis de idioma distintos (Ex: básico, intermediário, avançado, fluente) ou idiomas diferentes (Ex: Inglês e francês, inglês e espanhol, entre outros).","5 pontos/40 horas","Máx 10 pontos acumulados nos itens v, vi e vii.",null,{"$f":"IF((E7+E8+E9)>10,10,(E7+E8+E9))","v":0}]
["vi","Comprovação de proficiência em idioma de língua estrangeira.","5 pontos/idioma"]
["vii","Intercâmbio para aprimoramento de língua estrangeira (curso ou experiência de trabalho fora da área de formação).","10 pontos/atividade"]
["viii","Participação em apresentação de eventos artísticos e culturais, tais como: banda marcial, camerata de sopro, teatro, coral, radioamadorismo e outras.","5 pontos/evento","Máx 10 pontos acumulados nos itens viii e ix.",null,{"$f":"IF((E10+E11)>10,10,(E10+E11))","v":0}]
["ix","Prática  de atividades artísticas e culturais frequentes, tais como: ensaio de banda, aula de instrumentos musicais, aula de teatro, aula de circo, entre outras.","2 pontos/semestre"]
["x","Participação em eventos de caráter artístico ou cultural (Ex: exposição de quadros, sarais de poesia, concursos de fotos, concursos de fantasia, entre outros).","5 pontos/evento","Máx 10 pontos acumulados nos itens x e xi.",null,{"$f":"IF((E12+E13)>10,10,(E12+E13))","v":0}]
["xi","Participação efetiva na organização de eventos de caráter artístico, cultural ou esportivo (Ex: exposição de quadros, sarais de poesia, concursos de fotos, concursos de fantasia, olimpíadas esportivas, board games, entre outros).","10 pontos/evento"]
["Total Grupo 1",null,null,null,null,{"$f":"IF(SUM(F3:F13)>30,30,SUM(F3:F13))","v":0}]

{"sheet":"Grupo 2","index":3,"n_rows":16,"n_cols":6,"rows_kept":16,"cut":false,"hidden":false,"merged":[[0,0,0,5],[15,0,15,4],[4,3,6,3],[4,5,6,5],[9,3,11,3],[9,5,11,5],[12,0,14,0],[12,1,14,1],[12,3,14,3],[12,5,14,5]]}
["Grupo 2- Atividades de cunho comunitário e de interesse coletivo"]
["Código da atividade","Atividades","Pontuação ","Limite","Pontos solicitados em cada atividade","Pontos obtidos no item"]
["i","Participação efetiva em Diretórios e Centros Acadêmicos, Empresas Júnior, Entidades de Classe, Conselhos e Colegiados internos à Instituição.","5 pontos/semestre ","Máx 10 pontos.",null,{"$f":"IF((E3)>10,10,(E3))","v":0}]
["ii","Participação efetiva em trabalho voluntário, atividades comunitárias, CIPAS, associações de bairros, brigadas de incêndio e associações escolares; (Ex: PEPA, atividades de caráter religioso, entre outros).","1 ponto/hora (máximo de 5 pontos por atividade)","Máx 10 pontos.",null,{"$f":"IF((E4)>10,10,(E4))","v":0}]
["iii","Participação na organização de atividades beneficentes (Ex: campanhas de arrecadação de alimentos, agasalhos, brinquedos, visitas a asilos e orfanatos, entre outras).","5 pontos/atividade","Máx 10 pontos acumulados nos itens iii, iv e v.",null,{"$f":"IF((E5+E6+E7)>10,10,(E5+E6+E7))","v":0}]
["iv","Participação como doador em atividades beneficentes (Ex: campanhas de arrecadação de alimentos, agasalhos, brinquedos, cestas básicas, doação de sangue, entre outras).","1 ponto/doação"]
["v","Participação como visitante em atividades beneficentes (Ex: visitas a asilos, orfanatos, entidades carentes, entre outras).","2 pontos/visita"]
["vi","Atuação como ministrante em palestras técnicas, seminários, cursos da área específica, desde que não remunerados e de interesse da comunidade externa.","5 pontos/atividade","Máx 10 pontos. ",null,{"$f":"IF((E8)>10,10,(E8))","v":0}]
["vii","Engajamento como docente não remunerado em cursos preparatórios e de reforço escolar (Ex: cursinhos pré-vestibular, cursinho comunitário Feldman, entre outros).","5 pontos/semestre","Máx 10 pontos.",null,{"$f":"IF((E9)>10,10,(E9))","v":0}]
["viii","Participação em ações, cursos e eventos de extensão.","1 ponto/atividade","Máx 10 pontos acumulados nos itens viii, ix e x.",null,{"$f":"IF((E10+E11+E12)>10,10,(E10+E11+E12))","v":0}]
["ix","Organização de ações, cursos e eventos de extensão.","4 pontos/atividade"]
["x","Participação em projetos de extensão de interesse social e cunho assistencialista.","10 pontos/projeto anual"]
["xi","Participação como apresentador de trabalhos em palestras, congressos e seminários de extensão ou publicações em anais e/ou resumos de eventos de extensão.","2 pontos/atividade\n(Local ou regional)","Máx 10 pontos.",null,{"$f":"IF((E13+E14+E15)>10,10,(E13+E14+E15))","v":0}]
[null,null,"3 pontos/atividade\n(Nacional)"]
[null,null,"5 pontos/atividade\n(Internacional)"]
["Total Grupo 2",null,null,null,null,{"$f":"SUM(F3:F15)","v":0}]

{"sheet":"Grupo 3","index":4,"n_rows":24,"n_cols":7,"rows_kept":24,"cut":false,"hidden":false,"merged":[[11,1,16,1],[21,1,21,2],[22,1,22,2],[1,1,1,2],[8,1,8,2],[9,1,9,2],[10,1,10,2],[17,1,17,2],[18,1,18,2],[0,0,0,6],[19,1,19,2],[2,4,3,4],[11,4,16,4],[23,0,23,5],[2,6,3,6],[11,6,16,6],[2,1,2,2],[3,1,3,2],[4,1,4,2],[5,1,7,2],[20,1,20,2],[5,0,7,0],[5,4,7,4],[5,6,7,6],[11,0,16,0]]}
["Grupo 3- Atividades de iniciação científica, tecnológica e de formação profissional"]
["Código da atividade","Atividades",null,"Pontuação ","Limite","Pontos solicitados em cada atividade","Pontos obtidos no item"]
["i","Participação em cursos extraordinários da sua área de formação, de fundamento científico ou de gestão e EAD inferiores a 30 horas, fora de eventos acadêmicos.",null,"1 ponto/atividade","Máx 5 pontos acumulados nos itens i e ii.",null,{"$f":"IF((F3+F4)>5,5,(F3+F4))","v":0}]
["ii","Disciplinas EAD a partir de 30 horas não convalidadas.",null,"0,1 ponto/hora"]
["iii","Participação em palestras, congressos e seminários técnico-científicos.",null,"1 ponto/atividade","Máx 5 pontos.",null,{"$f":"IF((F5)>5,5,(F5))","v":0}]
["iv","Participação como apresentador de trabalhos em palestras, congressos e seminários técnico-científicos ou publicações em anais e/ou resumos de eventos técnico-científicos.",null,"2 pontos/atividade\n(Local ou regional)","Máx 10 pontos.",null,{"$f":"IF((F6+F7+F8)>10,10,(F6+F7+F8))","v":0}]
[null,null,null,"3 pontos/atividade\n(Nacional)"]
[null,null,null,"5 pontos/atividade\n(Internacional)"]
["v","Participação em iniciação científica e tecnológica, relacionados com o objetivo do curso.",null,"10 pontos/projeto anual","Máx 10 pontos.",null,{"$f":"IF((F9)>10,10,(F9))","v":0}]
["vi","Participação na comissão organizadora em eventos de caráter acadêmico (local, regional, nacional e internacional).",null,"10 pontos/evento","Máx 10 pontos.",null,{"$f":"IF((F10)>10,10,(F10))","v":0}]
["vii","vii. Participação como membro de apoio (staff) em eventos de caráter acadêmico (local, regional, nacional e internacional).",null,"0,2 ponto/hora (máximo de 2 pontos/evento)","Máx 6 pontos.",null,{"$f":"IF((F11)>6,6,(F11))","v":0}]
["viii","Publicações em revistas técnicas e científicas. ","A1\nA2\nFI ≥ 1,4","15 pontos/publicação","Máx 20 pontos.",null,{"$f":"IF((F12+F13+F14+F15+F16+F17)>20,20,(F12+F13+F14+F15+F16+F17))","v":0}]
[null,null,"A3\nA4\n0,7 ≤ FI < 1,4","12 pontos/publicação"]
[null,null,"B1\nB2\n0,35 ≤ FI < 0,7","9 pontos/publicação"]
[null,null,"B3\nB4\nFI < 0,35","6 pontos/publicação"]
[null,null,"C\nSem FI","3 pontos/publicação"]
[null,null,"Sem Qualis","Consultar FI/JCR/SJR e orientação da Capes/Cnpq"]
["ix","Estágio não obrigatório ou monitoria.",null,"0,1 ponto/hora","Máx 10 pontos.",null,{"$f":"IF((F18)>10,10,(F18))","v":0}]
["x","Trabalho com vínculo empregatício.",null,"0,05 ponto/hora","Máx 10 pontos.",null,{"$f":"IF((F19)>10,10,(F19))","v":0}]
["xi","Intercâmbio de trabalho na área de formação profissional.",null,"0,05 ponto/hora","Máx 10 pontos.",null,0]
["xii","Ser empreendedor (ex: ser dono ou sócio em empresas de start-up, empresas ligadas a incubadora/hotel tecnológico, microempresas, entre outros).",null,"5 pontos/semestre","Máx 15 pontos.",null,{"$f":"IF((F21)>15,15,(F21))","v":0}]
["xiii","Participação em visitas técnicas fora de eventos acadêmicos.",null,"0,5 ponto/visita","Máx 5 pontos.",null,{"$f":"IF((F22)>5,5,(F22))","v":0}]
["xiv","Participação em projetos de extensão de interesse social e interação dialógica com a sociedade.",null,"10 pontos/projeto anual","Máx 10 pontos.",null,{"$f":"IF((F23)>10,10,(F23))","v":0}]
["Total Grupo 3",null,null,null,null,null,{"$f":"SUM(G3:G23)","v":0}]

{"sheet":"Relatório para Validação","index":5,"n_rows":44,"n_cols":4,"rows_kept":44,"cut":false,"hidden":false,"merged":[[42,1,42,2],[39,1,39,2],[7,0,7,2],[41,1,41,2],[37,1,37,2],[38,1,38,2],[0,0,0,3],[1,0,1,3],[3,0,3,1],[4,0,4,1],[5,0,5,1]]}
["ATIVIDADES COMPLEMENTARES"]
["Relatório final de avaliação"]
[]
["RA do Aluno:"]
["Nome do aluno:"]
["Data de Aprovação:"]
[]
["Resumo da pontuação:"]
["Grupo 1:",null,"pontos"]
["Grupo 2:",null,"pontos"]
["Grupo 3:",null,"pontos"]
["Pontuação final:",null,"pontos"]
["Situação final:"]
[]
["Grupo","Código da atividade","Descrição da atividade","Pontuação"]
[]
[]
[]
[]
[]
[]
[]
[]
[]
[]
[]
[]
[]
[]
[]
[]
[]
[]
[]
[]
[]
[]
[]
[]
[null,"Nome do aluno"]
[]
[]
[null,"Lucas Bonfim Rocha"]
[null,"Professor Responsável pelas Atividades de Horas Complementares"]